bitfinex-derivatives/quotes_ETHF0:USTF0_20250105
["timestamp","ask_amount","ask_price","bid_price","bid_amount"]
[1736051001548,3.94273494,3646.8,3646.7,0.4097]
[1736051001742,1.11886085,3646.8,3646.5,0.99416325]
[1736051001949,1.8387441,3646.8,3646.4,6.42240111]
[1736051002346,0.2743,3646.5,3646.4,6.42240111]
[1736051002947,0.2743,3646.5,3646.3,8.25796436]
[1736051003243,3.23742113,3646.6,3646.3,8.25796436]
[1736051003444,0.69011,3646.4,3646.3,6.42240111]
[1736051005454,0.4158,3646.4,3646.2,6.83210111]
[1736051005661,0.27431,3646.3,3646.2,6.83210111]
[1736051006052,0.27431,3646.3,3646.2,6.42240111]
[1736051006956,0.27431,3646.3,3646.2,4.29205915]
[1736051008257,0.27431,3646.3,3646.2,5.2862224]
[1736051008455,0.27431,3646.3,3646.2,0.99416325]
[1736051009654,0.27431,3646.3,3646.2,5.2862224]
[1736051011762,0.69011,3646.4,3646.2,5.2862224]
[1736051012061,0.27431,3646.4,3646.2,5.2862224]
[1736051012459,0.27431,3646.3,3646.2,5.2862224]
[1736051013057,3.23742113,3646.5,3646.2,5.2862224]
[1736051013255,0.27431,3646.4,3646.2,5.2862224]
[1736051015563,6.44522113,3646.6,3646.2,5.2862224]
[1736051015766,0.27431,3646.4,3646.2,5.2862224]
[1736051016465,0.4117,3646.3,3646.2,5.2862224]
[1736051016865,0.68601,3646.3,3646.2,5.2862224]
[1736051017065,0.4117,3646.3,3646.2,5.2862224]
[1736051017566,0.68601,3646.3,3646.2,5.2862224]
[1736051017861,0.4117,3646.3,3646.2,4.29205915]
[1736051018367,0.4117,3646.3,3646.2,5.2862224]
[1736051019765,0.4117,3646.3,3646.2,0.99416325]
[1736051020265,2.56967105,3646.3,3646.2,0.99416325]
[1736051023059,2.56967105,3646.3,3646.2,1.41266325]
[1736051024569,2.56967105,3646.3,3646.2,7.83506436]
[1736051025863,2.56967105,3646.3,3646.2,1.41266325]
[1736051027872,2.56967105,3646.3,3646.2,1.68698325]
[1736051028068,2.15797105,3646.3,3646.2,1.68698325]
[1736051028669,2.15797105,3646.3,3646.2,8.10938436]
[1736051029974,2.15797105,3646.4,3646.2,8.10938436]
[1736051030366,2.15797105,3646.4,3646.2,7.11522111]
[1736051031167,2.43228105,3646.4,3646.2,6.84090111]
[1736051031470,2.15797105,3646.4,3646.2,6.84090111]
[1736051031672,2.15797105,3646.4,3646.2,7.11522111]
[1736051032177,3.23742113,3646.4,3646.2,4.98501829]
[1736051033576,3.23742113,3646.4,3646.2,4.71069829]
[1736051033772,3.23742113,3646.4,3646.2,4.98501829]
[1736051033973,3.23742113,3646.4,3646.2,4.71069829]
[1736051034276,3.23742113,3646.4,3646.2,4.98501829]
[1736051034871,3.6490387,3646.4,3646.2,4.98501829]
[1736051035778,3.6490387,3646.4,3646.2,4.71069829]
[1736051035974,3.6490387,3646.4,3646.2,4.98501829]
[1736051043180,3.6490387,3646.4,3646.2,4.71069829]
[1736051043486,3.6490387,3646.4,3646.3,0.27431]
[1736051044581,3.6490387,3646.4,3646.3,4.56650829]
[1736051045185,3.6490387,3646.4,3646.3,4.29219829]
[1736051045583,3.23742113,3646.4,3646.2,0.69282]
[1736051045789,3.23742113,3646.4,3646.3,0.27431]
[1736051047888,3.64902936,3646.4,3646.3,0.27431]
[1736051048086,3.64902936,3646.4,3646.3,6.69671111]
[1736051049495,0.41160823,3646.4,3646.3,0.27431]
[1736051050292,0.41160823,3646.4,3646.2,7.11522111]
[1736051050498,5.54320019,3646.5,3646.2,7.11522111]
[1736051050693,5.54320019,3646.5,3646.3,0.27431]
[1736051051902,0.41160823,3646.4,3646.2,7.11522111]
[1736051052500,1.40577148,3646.4,3646.2,6.84090111]
[1736051052703,1.68008148,3646.4,3646.2,6.42240111]
[1736051053399,1.68008148,3646.4,3646.3,4.2946381]
[1736051053400,5.97407344,3646.4,3646.3,4.2946381]
[1736051054708,4.97991019,3646.4,3646.3,4.2946381]
[1736051054904,5.69976344,3646.4,3646.3,4.2946381]
[1736051055105,5.97407344,3646.4,3646.3,4.2946381]
[1736051055708,5.69976344,3646.4,3646.3,4.2946381]
[1736051056410,5.97407344,3646.4,3646.3,4.2946381]
[1736051057207,5.69976344,3646.4,3646.3,4.2946381]
[1736051057610,5.97407344,3646.4,3646.3,4.2946381]
[1736051059314,9.18187344,3646.4,3646.3,4.2946381]
[1736051059809,8.18771019,3646.4,3646.3,2.4086381]
[1736051060413,0.27431,3646.3,3646.2,6.42240111]
[1736051060712,0.99416325,3646.3,3645.8,6.42240111]
[1736051060911,0.27433,3646.1,3645.8,7.41656436]
[1736051061108,0.27434,3646.0,3645.8,7.41656436]
[1736051061612,0.68944,3646.0,3645.8,7.41656436]
[1736051062015,3.65084693,3645.9,3645.8,0.99416325]
[1736051062815,3.92518693,3645.9,3645.8,0.99416325]
[1736051063314,4.35728693,3645.9,3645.8,0.99416325]
[1736051063719,3.9456787,3645.9,3645.8,0.99416325]
[1736051065215,0.70644,3645.9,3645.7,0.4355]
[1736051066310,0.4321,3645.9,3645.7,0.4355]
[1736051066510,0.27435,3645.8,3645.7,0.4355]
[1736051066716,0.70645,3645.9,3645.7,0.4355]
[1736051067415,0.4202,3645.8,3645.7,0.4355]
[1736051067613,0.69455,3645.8,3645.7,0.4355]
[1736051067811,2.85231352,3645.8,3645.7,0.4355]
[1736051068717,2.57796352,3645.8,3645.7,0.4355]
[1736051070117,3.84647677,3645.8,3645.7,0.4355]
[1736051070525,1.68871325,3645.8,3645.7,0.4355]
[1736051071721,1.68871325,3645.8,3645.3,6.69679111]
[1736051071722,0.27438,3645.4,3645.3,6.42240111]
[1736051072023,0.27438,3645.4,3645.0,1.26857325]
[1736051072024,1.26854325,3645.4,3645.2,7.69790111]
[1736051072417,0.27439,3645.3,3645.2,7.69790111]
[1736051073218,0.99416325,3645.4,3645.2,7.69790111]
[1736051073521,1.26854325,3645.4,3645.2,1.2755]
[1736051074618,2.1565078,3645.5,3645.2,2.26966325]
[1736051074815,2.1565078,3645.5,3645.4,0.99416325]
[1736051075012,2.1565078,3645.5,3645.4,1.26854325]
[1736051075825,2.5767078,3645.8,3645.4,0.99416325]
[1736051076024,2.5767078,3645.8,3645.5,0.27437]
[1736051076526,2.1565078,3645.8,3645.6,0.4157]
[1736051076723,2.1565078,3645.8,3645.7,0.849]
[1736051076724,2.4308578,3645.8,3645.7,0.849]
[1736051078420,2.1565078,3645.8,3645.7,1.12336]
[1736051079623,3.2078,3646.1,3645.7,0.849]
[1736051079827,3.2078,3646.1,3646.0,0.99416325]
[1736051081223,0.27432,3646.2,3646.0,0.99416325]
[1736051081729,0.27432,3646.2,3646.1,0.4341]
[1736051082731,5.3643078,3646.3,3646.1,0.4341]
[1736051082921,5.3643078,3646.3,3646.2,1.83206325]
[1736051083731,2.1565078,3646.3,3646.2,1.83206325]
[1736051083942,2.4308178,3646.4,3646.2,1.83206325]
[1736051085235,0.27431,3646.4,3646.2,1.83206325]
[1736051086832,2.4308178,3646.4,3646.2,1.83206325]
[1736051087431,3.42498105,3646.4,3646.2,1.83206325]
[1736051087830,0.27431,3646.3,3646.2,0.8379]
[1736051091342,0.27431,3646.3,3646.2,1.83206325]
[1736051092333,2.1565078,3646.4,3646.3,0.27431]
[1736051092745,2.1565078,3646.4,3646.2,2.10638325]
[1736051092946,2.1565078,3646.4,3646.3,0.27431]
[1736051094648,2.1565078,3646.8,3646.6,0.27429]
[1736051094954,2.1565078,3646.8,3646.7,0.4319]
[1736051095440,2.1565078,3646.8,3646.7,1.2998]
[1736051095845,2.5889078,3646.9,3646.7,1.2998]
[1736051096047,2.5889078,3646.9,3646.7,2.29396325]
[1736051099261,0.27428,3646.8,3646.7,1.2998]
[1736051100462,3.58307105,3646.9,3646.7,1.2998]
[1736051100463,2.5889078,3646.9,3646.7,1.2998]
[1736051100654,2.8631778,3646.9,3646.8,0.99416325]
[1736051101062,0.70667,3646.9,3646.8,0.99416325]
[1736051101263,4.58422533,3647.0,3646.8,0.99416325]
[1736051102258,4.58422533,3647.0,3646.9,0.27427]
[1736051102459,3.2078,3647.1,3647.0,0.27426]
[1736051102663,2.1565078,3647.2,3647.0,1.26842325]
[1736051102869,2.1565078,3647.2,3647.1,0.27425]
[1736051103158,0.2705078,3647.2,3647.1,0.71785]
[1736051104161,3.23664528,3647.6,3647.1,0.4436]
[1736051104457,3.23664528,3647.6,3647.5,1.26838325]
[1736051104656,3.23664528,3647.6,3647.5,0.99416325]
[1736051105562,0.27422,3647.7,3647.5,0.99416325]
[1736051105957,0.27422,3647.7,3647.6,0.4292]
[1736051106565,1.42906325,3647.9,3647.6,0.4292]
[1736051106759,1.42906325,3647.9,3647.7,0.99416325]
[1736051106760,0.4349,3647.9,3647.7,0.99416325]
[1736051107064,0.7091,3647.9,3647.6,0.4292]
[1736051107364,3.23664528,3648.3,3647.6,0.4292]
[1736051107365,0.27417,3648.2,3647.7,1.26837325]
[1736051107565,0.71337,3648.2,3647.9,0.99416325]
[1736051107766,0.4392,3648.2,3647.9,0.99416325]
[1736051107960,3.48198,3648.1,3647.9,1.40436325]
[1736051108153,3.2078,3648.1,3647.9,1.40436325]
[1736051108359,4.31898493,3648.5,3647.9,1.40436325]
[1736051108360,3.2078,3648.5,3647.9,1.40436325]
[1736051108557,3.2078,3648.5,3648.4,0.99416325]
[1736051109157,3.23664528,3648.6,3648.4,0.99416325]
[1736051109460,3.23664528,3648.6,3648.5,0.4236]
[1736051109461,3.51078528,3648.6,3648.5,0.4236]
[1736051109666,0.27416,3648.4,3648.3,0.4325]
[1736051110164,0.4397,3648.5,3648.3,0.4325]
[1736051110359,0.71386,3648.4,3648.3,0.4325]
[1736051111365,0.27415,3648.6,3648.3,0.4325]
[1736051111568,0.27414,3648.7,3648.3,0.4325]
[1736051112170,0.4397,3648.8,3648.3,0.4325]
[1736051112370,0.27415,3648.5,3648.3,0.4325]
[1736051112673,0.27416,3648.4,3648.3,0.4325]
[1736051112864,0.27416,3648.3,3648.0,0.4236]
[1736051113069,0.27416,3648.3,3648.1,0.4052]
[1736051113070,0.68376,3648.3,3648.1,0.4052]
[1736051114271,0.68376,3648.3,3644.9,0.37036062]
[1736051114272,0.2742,3647.9,3647.6,2.19887003]
[1736051114568,0.4096,3647.8,3647.6,2.19887003]
[1736051117661,0.4096,3647.8,3647.6,2.47308003]
[1736051117869,0.69929,3648.0,3647.6,2.47308003]
[1736051118376,0.69929,3648.0,3647.6,2.19887003]
[1736051119067,0.4251,3648.0,3647.6,2.19887003]
[1736051119267,3.92538,3648.1,3647.7,0.27421]
[1736051119467,3.92538,3648.1,3647.6,2.19887003]
[1736051119667,3.6512,3648.1,3647.9,2.19887003]
[1736051119873,0.71758,3648.1,3648.0,0.4287]
[1736051120063,0.4434,3648.1,3648.0,0.4287]
[1736051122373,0.71758,3648.1,3648.0,0.4287]
[1736051125271,0.4434,3648.1,3647.4,3.2078]
[1736051125473,3.2078,3647.9,3647.4,3.2078]
[1736051125780,0.27421,3647.7,3647.4,3.2078]
[1736051125974,0.4348,3647.8,3647.5,0.4109]
[1736051126178,0.4135,3647.6,3647.5,0.4109]
[1736051126679,0.68772,3647.6,3647.5,0.4109]
[1736051126873,0.4135,3647.6,3647.5,0.4109]
[1736051131779,0.68772,3647.6,3647.5,0.4109]
[1736051131978,0.8627,3647.6,3647.5,0.4109]
[1736051133487,0.8627,3647.6,3647.4,3.2078]
[1736051133488,0.27422,3647.5,3647.4,3.2078]
[1736051133686,1.13692,3647.6,3647.4,3.2078]
[1736051134482,0.8627,3647.6,3647.4,3.2078]
[1736051134686,1.13692,3647.6,3647.4,3.2078]
[1736051135188,0.27422,3647.5,3647.4,3.2078]
[1736051136089,1.13692,3647.6,3647.4,3.2078]
[1736051136985,0.8627,3647.6,3647.4,3.2078]
[1736051137385,0.27423,3647.5,3647.3,2.19887003]
[1736051138592,0.8627,3647.6,3647.3,2.19887003]
[1736051138593,1.13692,3647.6,3647.3,2.19887003]
[1736051139289,0.8627,3647.6,3647.3,2.19887003]
[1736051139490,0.27423,3647.5,3647.3,2.19887003]
[1736051139794,0.8627,3647.6,3647.3,2.19887003]
[1736051139992,0.27423,3647.4,3647.3,2.19887003]
[1736051143295,0.27425,3647.1,3647.0,3.07097003]
[1736051144296,0.27425,3647.1,3647.0,1.86498758]
[1736051144492,0.27425,3647.1,3646.7,6.69668111]
[1736051144493,0.4314,3647.2,3646.7,6.42240111]
[1736051144793,0.27425,3647.1,3647.0,0.99288758]
[1736051144996,0.70875,3647.1,3647.0,0.99288758]
[1736051145397,0.27428,3646.8,3646.6,0.4123]
[1736051145596,0.27427,3646.9,3646.7,0.99288758]
[1736051145795,0.27427,3646.9,3646.8,0.99288758]
[1736051146198,0.27427,3646.9,3646.8,2.20035247]
[1736051146996,0.4345,3647.1,3646.5,8.62275358]
[1736051146997,0.27429,3646.7,3646.5,8.62275358]
[1736051147197,0.4146,3646.6,3646.5,8.62275358]
[1736051147500,0.8373,3646.6,3646.5,8.62275358]
[1736051147702,0.8373,3646.6,3646.5,2.20035247]
[1736051154502,0.8373,3646.6,3646.3,0.27431]
[1736051154806,1.11159,3646.6,3646.2,3.76857247]
[1736051155212,1.11159,3646.6,3646.2,3.49425247]
[1736051156007,0.2743,3646.5,3646.2,3.49425247]
[1736051156213,0.27431,3646.4,3646.2,3.49425247]
[1736051156408,0.2743,3646.5,3646.2,3.49425247]
[1736051158207,1.11159,3646.6,3646.2,3.76857247]
[1736051159809,1.11159,3646.6,3646.2,3.49425247]
[1736051161411,0.2743,3646.5,3646.2,3.49425247]
[1736051161615,1.1116,3646.6,3646.2,3.76857247]
[1736051163410,1.11159,3646.6,3646.2,3.76857247]
[1736051163613,0.69699,3646.6,3646.2,3.76857247]
[1736051165120,0.2743,3646.5,3646.2,3.49425247]
[1736051165417,0.69699,3646.6,3646.2,3.76857247]
[1736051166221,0.69699,3646.6,3646.4,0.99328118]
[1736051171008,0.2743,3646.5,3646.3,0.99328118]
[1736051172219,0.2743,3646.5,3646.2,1.2939]
[1736051172220,0.27431,3646.3,3646.2,0.4482]
[1736051172517,0.27433,3646.2,3645.9,7.41568229]
[1736051172721,1.10913,3646.2,3646.0,0.4131]
[1736051172918,1.10913,3646.2,3646.1,0.99328118]
[1736051174111,0.8348,3646.2,3646.1,0.99328118]
[1736051174317,1.10912,3646.2,3646.1,0.99328118]
[1736051180322,0.8348,3646.2,3646.0,0.4131]
[1736051180524,0.27433,3646.1,3646.0,0.4131]
[1736051182322,0.27434,3646.1,3645.9,0.99328118]
[1736051183326,0.27434,3646.0,3645.9,0.99328118]
[1736051183527,0.27434,3646.0,3645.8,1.3144]
[1736051184123,0.99328118,3646.1,3645.8,1.3144]
[1736051184424,0.27434,3645.9,3645.8,1.3144]
[1736051184618,0.99328118,3646.1,3645.8,1.3144]
[1736051184818,0.27434,3646.0,3645.8,1.3144]
[1736051189631,0.27434,3646.0,3645.8,5.59485667]
[1736051189831,4.0426,3646.2,3645.8,6.58813785]
[1736051190034,0.27433,3646.1,3645.8,6.58813785]
[1736051191132,1.056,3646.3,3646.1,0.27433]
[1736051191334,1.056,3646.3,3646.2,0.99328118]
[1736051192944,1.056,3646.3,3646.2,1.42818118]
[1736051193343,3.23664528,3646.5,3646.2,1.42818118]
[1736051193544,3.23664528,3646.5,3646.4,1.26759118]
[1736051193944,3.2078,3646.6,3646.4,0.99328118]
[1736051194241,3.23664528,3646.7,3646.6,0.27429]
[1736051194437,3.23664528,3646.7,3646.5,0.857]
[1736051194632,3.23664528,3646.7,3646.6,0.99328118]
[1736051194935,3.23664528,3646.7,3646.6,1.41388118]
[1736051195731,0.27427,3646.9,3646.6,5.69433785]
[1736051196328,0.99328118,3647.0,3646.6,5.69433785]
[1736051196529,0.27427,3646.9,3646.6,5.69433785]
[1736051197230,0.27428,3646.8,3646.6,5.69433785]
[1736051197633,0.27428,3646.7,3646.6,4.70105667]
[1736051197941,0.71158,3646.7,3646.6,4.70105667]
[1736051198253,0.71158,3646.7,3646.6,0.4206]
[1736051200639,3.23664528,3647.0,3646.7,0.27428]
[1736051200841,3.23664528,3647.0,3646.6,1.41388118]
[1736051200842,3.23664528,3647.0,3646.9,0.99328118]
[1736051201927,6.71868528,3647.3,3646.9,0.99328118]
[1736051202136,6.71868528,3647.3,3647.0,0.427]
[1736051202433,6.71868528,3647.3,3647.1,0.4065]
[1736051203543,3.2078,3647.3,3647.1,1.39978118]
[1736051204233,3.2078,3647.3,3647.1,0.4065]
[1736051207541,3.48204,3647.3,3647.1,0.4065]
[1736051208538,0.27425,3647.2,3647.1,0.4065]
[1736051210248,0.72285,3647.2,3647.1,0.4065]
[1736051211141,0.4486,3647.2,3647.1,0.4065]
[1736051211540,0.72285,3647.2,3647.1,0.4065]
[1736051212948,0.27425,3647.1,3647.0,0.8759]
[1736051214744,0.27425,3647.1,3647.0,0.4489]
[1736051214946,0.69585,3647.1,3647.0,0.4489]
[1736051224346,0.69585,3647.1,3647.0,1.44182776]
[1736051226757,0.27425,3647.1,3647.0,1.44182776]
[1736051227151,0.4434,3647.4,3647.0,1.44182776]
[1736051227359,2.15200492,3647.6,3647.3,0.99292776]
[1736051227561,2.15200492,3647.6,3647.5,1.26714776]
[1736051228253,2.15200492,3647.6,3647.5,0.99292776]
[1736051228959,0.27421,3647.7,3647.5,0.99292776]
[1736051229156,0.27422,3647.5,3647.4,1.87792776]
[1736051229957,0.27422,3647.5,3647.4,1.43892776]
[1736051232661,0.27422,3647.5,3647.4,0.99292776]
[1736051233365,0.27422,3647.6,3647.4,0.99292776]
[1736051233565,4.20072776,3647.8,3647.4,0.99292776]
[1736051233868,4.20072776,3647.8,3647.2,0.4097]
[1736051233869,0.27424,3647.3,3647.2,0.99292776]
[1736051234659,0.8606,3647.4,3647.2,0.99292776]
[1736051234964,1.13484,3647.4,3647.2,0.99292776]
[1736051235760,0.4431,3647.5,3647.3,0.27424]
[1736051235960,0.4431,3647.5,3647.4,0.99292776]
[1736051237771,0.27424,3647.4,3647.2,0.99292776]
[1736051237966,0.71733,3647.5,3647.2,0.99292776]
[1736051239061,0.27423,3647.4,3647.1,4.71475667]
[1736051239262,0.71733,3647.5,3647.2,0.99292776]
[1736051239661,2.86933492,3647.5,3647.2,0.99292776]
[1736051241369,2.86933492,3647.5,3647.2,5.27338443]
[1736051241772,2.59510492,3647.5,3647.2,4.28045667]
[1736051242063,0.27424,3647.4,3647.2,4.28045667]
[1736051242269,0.8678,3647.3,3647.2,4.28045667]
[1736051242465,1.14204,3647.3,3647.2,4.28045667]
[1736051243070,2.13496776,3647.3,3647.2,4.28045667]
[1736051243866,1.14204,3647.3,3647.2,4.28045667]
[1736051244060,0.27425,3647.2,3647.1,4.28045667]
[1736051245771,2.42625492,3647.2,3647.0,4.28045667]
[1736051245968,0.4197,3647.1,3647.0,4.28045667]
[1736051246568,1.68687776,3647.1,3647.0,4.28045667]
[1736051247177,3.83888268,3647.1,3647.0,4.28045667]
[1736051248264,1.82418785,3647.1,3646.8,0.4473]
[1736051248473,0.99292776,3646.9,3646.8,0.4473]
[1736051248770,1.26719776,3646.9,3646.8,0.4473]
[1736051249570,0.99292776,3646.9,3646.8,0.4473]
[1736051249975,3.51034104,3647.0,3646.8,0.4473]
[1736051251276,2.15695188,3646.9,3646.8,0.4473]
[1736051252879,2.43122188,3646.9,3646.8,0.4473]
[1736051253176,2.15695188,3646.9,3646.8,0.4473]
[1736051255383,2.43122188,3646.9,3646.8,0.4473]
[1736051258376,0.27428,3646.8,3646.7,0.4236]
[1736051258772,0.27428,3646.8,3646.6,5.70968443]
[1736051259092,0.4273,3646.7,3646.6,5.70968443]
[1736051260074,0.70158,3646.7,3646.6,5.70968443]
[1736051260478,0.4273,3646.7,3646.6,5.70968443]
[1736051262583,0.4273,3646.7,3646.6,1.42922776]
[1736051263174,2.15695188,3646.9,3646.6,1.42922776]
[1736051263382,2.15695188,3646.9,3646.8,1.26720776]
[1736051263676,2.15558375,3647.1,3647.0,0.27426]
[1736051263884,2.15558375,3647.1,3647.0,1.26718776]
[1736051264880,2.15558375,3647.1,3647.0,0.99292776]
[1736051265082,1.44042776,3647.4,3647.0,4.70616933]
[1736051265275,0.8572,3647.2,3647.0,4.70616933]
[1736051266485,0.8572,3647.2,3647.0,5.27549095]
[1736051267991,1.85012776,3647.2,3647.0,4.28256319]
[1736051269097,1.85012776,3647.2,3646.9,5.27549095]
[1736051270992,0.8572,3647.2,3646.9,5.27549095]
[1736051271190,0.8572,3647.2,3646.9,5.54976095]
[1736051271489,0.4391,3647.2,3646.9,5.54976095]
[1736051271798,0.4391,3647.2,3647.0,0.70326]
[1736051272888,0.4475,3647.4,3647.2,0.27425]
[1736051273092,3.2078,3647.6,3647.3,0.99292776]
[1736051273286,3.2078,3647.6,3647.1,4.28256319]
[1736051273287,3.2078,3647.6,3647.5,1.26714776]
[1736051273692,3.23608104,3647.7,3647.6,0.27422]
[1736051274496,0.99292776,3648.0,3647.5,5.27549095]
[1736051274691,0.99292776,3648.0,3647.8,0.2742]
[1736051274896,0.99292776,3648.0,3647.5,4.28256319]
[1736051275099,0.4114,3647.9,3647.6,0.27421]
[1736051275299,0.4114,3647.9,3647.7,0.99292776]
[1736051275993,0.4375,3647.8,3647.7,0.99292776]
[1736051276196,8.60653117,3648.7,3647.7,2.05092776]
[1736051276391,6.45150257,3649.1,3649.0,0.27411]
[1736051276392,5.89603257,3649.1,3649.0,0.27411]
[1736051276593,1.13454633,3649.1,3649.0,3.48191]
[1736051276799,1.13454633,3649.1,3649.0,4.47483776]
[1736051276995,1.13454633,3649.1,3649.0,3.48191]
[1736051277191,1.13454633,3649.1,3649.0,4.47483776]
[1736051277394,3.87534633,3649.1,3649.0,0.27411]
[1736051277898,2.7408,3649.1,3649.0,13.44137103]
[1736051278294,2.7408,3649.1,3649.0,16.64917103]
[1736051278489,0.447,3649.5,3649.0,16.37506103]
[1736051278695,2.7408,3649.2,3649.1,0.2741]
[1736051279194,0.447,3649.5,3649.1,0.2741]
[1736051279195,0.447,3649.5,3649.4,4.2638731]
[1736051279394,0.447,3649.5,3649.4,7.7457531]
[1736051280902,0.447,3649.5,3649.4,14.26677667]
[1736051282094,3.1878,3649.5,3649.4,14.26677667]
[1736051283403,3.1878,3649.5,3649.4,3.48188]
[1736051284101,3.1878,3649.5,3649.4,3.2078]
[1736051285003,3.1878,3649.5,3649.2,4.25238582]
[1736051285298,2.7408,3649.3,3649.2,4.25238582]
[1736051286604,2.7408,3649.3,3648.9,6.39580966]
[1736051286605,2.7408,3649.3,3648.8,3.48192]
[1736051286803,2.7408,3648.9,3648.8,3.48192]
[1736051287896,0.447,3649.5,3648.8,3.2078]
[1736051288100,3.1878,3649.5,3649.4,0.27408]
[1736051288502,3.1878,3649.5,3649.2,3.48189]
[1736051288804,2.7408,3649.3,3649.2,3.48189]
[1736051291307,2.7408,3649.3,3649.2,3.2078]
[1736051291506,2.7408,3649.3,3649.2,3.4819]
[1736051293803,2.7408,3649.3,3649.2,3.2078]
[1736051294601,2.7408,3649.3,3649.0,0.27411]
[1736051294801,2.7408,3649.0,3648.9,0.68802]
[1736051298410,0.447,3649.5,3649.4,0.27408]
[1736051298804,3.1878,3649.5,3649.4,0.27408]
[1736051299309,3.1878,3649.5,3648.9,0.4139]
[1736051299510,2.7408,3649.1,3649.0,0.27411]
[1736051301815,0.447,3649.5,3648.9,0.4139]
[1736051302007,0.447,3649.5,3649.4,0.27408]
[1736051302513,3.1878,3649.5,3649.4,0.27408]
[1736051304109,3.1878,3649.5,3648.9,0.4139]
[1736051304311,2.7408,3649.3,3649.2,0.2741]
[1736051305207,2.7408,3649.3,3649.0,0.27411]
[1736051305512,2.7408,3649.3,3649.2,0.2741]
[1736051306015,0.447,3649.5,3648.9,0.4139]
[1736051306208,0.447,3649.5,3649.2,0.2741]
[1736051306409,2.7408,3649.3,3648.9,0.4139]
[1736051306610,2.7408,3649.1,3649.0,0.27411]
[1736051307017,3.1638,3649.1,3649.0,0.27411]
[1736051308822,3.1638,3649.1,3648.8,3.2078]
[1736051309021,2.7408,3648.9,3648.8,3.48193]
[1736051310219,0.423,3649.1,3649.0,0.27411]
[1736051310921,0.423,3649.1,3648.8,3.48192]
[1736051311822,0.423,3649.1,3648.9,0.27412]
[1736051312222,0.423,3649.1,3648.8,3.2078]
[1736051313223,0.423,3649.1,3648.9,0.27412]
[1736051313424,0.423,3649.1,3649.0,0.27411]
[1736051316229,0.423,3649.1,3648.8,3.2078]
[1736051316230,0.447,3649.5,3649.4,0.27408]
[1736051316534,0.447,3649.5,3649.4,2.47189188]
[1736051316733,0.447,3649.5,3649.3,3.48189]
[1736051316928,0.447,3649.5,3649.3,3.2078]
[1736051319834,0.447,3649.5,3649.3,3.48189]
[1736051320028,0.447,3649.5,3649.3,3.2078]
[1736051320434,0.447,3649.5,3649.3,7.46018582]
[1736051321936,0.447,3649.5,3649.4,4.25238582]
[1736051323031,0.447,3649.5,3649.4,4.57623364]
[1736051323234,0.447,3649.5,3649.4,4.85031364]
[1736051323537,0.447,3649.5,3649.4,4.57623364]
[1736051324133,0.447,3649.5,3649.4,22.25622339]
[1736051329844,0.447,3649.5,3649.4,13.72847718]
[1736051330143,0.72107,3649.5,3649.4,13.72847718]
[1736051330944,0.447,3649.5,3649.4,13.72847718]
[1736051331143,0.72107,3649.5,3649.4,13.72847718]
[1736051332042,0.447,3649.5,3649.4,13.72847718]
[1736051332443,0.447,3649.5,3649.4,13.13348269]
[1736051333142,0.72107,3649.5,3649.4,13.13348269]
[1736051333347,0.447,3649.5,3649.4,13.13348269]
[1736051333647,0.447,3649.5,3649.4,4.57623364]
[1736051334438,0.72107,3649.5,3649.4,4.57623364]
[1736051335038,0.72107,3649.5,3649.4,13.73263814]
[1736051335846,0.447,3649.5,3649.4,13.73263814]
[1736051336043,0.447,3649.5,3649.4,14.17253814]
[1736051337639,0.447,3649.5,3649.4,24.8322209]
[1736051340347,0.71986,3649.7,3649.4,24.8322209]
[1736051340749,0.71986,3649.7,3649.4,28.0400209]
[1736051340951,0.27407,3649.6,3649.4,28.0400209]
[1736051341744,3.2078,3649.9,3649.5,0.27407]
[1736051341950,0.27406,3649.7,3649.4,28.0400209]
[1736051342147,0.27406,3649.7,3649.5,13.73263814]
[1736051342745,0.27407,3649.6,3649.5,13.73263814]
[1736051342950,0.68697,3649.6,3649.5,13.73263814]
[1736051343348,0.68697,3649.6,3649.5,10.65968276]
[1736051343852,3.89477,3649.6,3649.5,10.65968276]
[1736051344240,3.89477,3649.6,3649.5,10.99250561]
[1736051344953,0.68697,3649.6,3649.5,10.99250561]
[1736051345453,3.89477,3649.6,3649.5,10.99250561]
[1736051350349,3.89477,3649.6,3649.5,4.57678143]
[1736051353147,0.27407,3649.5,3649.4,4.27579706]
[1736051354654,2.47188188,3649.5,3649.4,4.27579706]
[1736051354852,3.59588188,3649.5,3649.4,4.27579706]
[1736051355048,8.59588188,3649.5,3649.4,1.76235706]
[1736051355252,8.59588188,3649.5,3649.4,7.06e-06]
[1736051355653,0.27409,3649.3,3649.2,7.06e-06]
[1736051356852,0.27413,3648.8,3648.7,6.86282418]
[1736051357051,0.27413,3648.8,3648.7,6.41572418]
[1736051358160,0.27413,3648.7,3648.6,6.41572418]
[1736051358364,1.84123,3648.7,3648.6,6.41572418]
[1736051359459,1.5671,3648.7,3648.3,6.41572418]
[1736051359753,0.27416,3648.4,3648.3,6.41572418]
[1736051360462,0.27416,3648.4,3648.3,4.46574556]
[1736051361665,0.27416,3648.3,3648.2,6.41572418]
[1736051362772,0.27416,3648.3,3648.2,4.46302875]
[1736051365563,0.27417,3648.2,3648.1,0.4471]
[1736051369376,0.4382,3648.6,3648.1,0.4471]
[1736051369568,0.27416,3648.4,3648.1,0.4471]
[1736051369766,1.38916,3648.4,3648.1,0.4471]
[1736051370373,1.115,3648.4,3648.1,0.4471]
[1736051370568,0.27416,3648.3,3648.1,0.4471]
[1736051370962,1.115,3648.4,3648.1,0.4471]
[1736051371172,1.115,3648.4,3648.2,3.2078]
[1736051371371,1.115,3648.4,3648.3,0.4122]
[1736051372372,1.38916,3648.4,3648.3,0.4122]
[1736051373776,0.27416,3648.4,3648.3,0.4122]
[1736051377781,0.27416,3648.3,3648.2,3.2078]
[1736051378675,0.27417,3648.2,3648.1,0.4471]
[1736051388191,0.27417,3648.2,3648.1,1.43943015]
[1736051388788,0.27417,3648.2,3648.1,0.4471]
[1736051388980,0.27417,3648.2,3648.1,1.43943015]
[1736051394592,0.27418,3648.1,3648.0,6.41572418]
[1736051395593,0.27418,3648.1,3648.0,7.40805433]
[1736051396095,0.27418,3648.1,3648.0,11.87631562]